[Event "*** Titled Tuesday Blitz"]
[Site "Chess.com"]
[Date "2020.11.24"]
[Round "6"]
[White "saraswathii"]
[Black "Mazetovic"]
[Result "0-1"]
[WhiteElo "2413"]
[BlackElo "2774"]
[TimeControl "180+1"]
[EndTime "11:21:01 PST"]
[Termination "Mazetovic won by resignation"]

1. e4 {[%clk 0:02:53.5]} 1... c5 {[%clk 0:02:51.7]} 2. d3 {[%clk 0:02:52]} 2...
Nc6 {[%clk 0:02:51.5]} 3. Nf3 {[%clk 0:02:51.3]} 3... g6 {[%clk 0:02:50.9]} 4.
g3 {[%clk 0:02:50.2]} 4... Bg7 {[%clk 0:02:51]} 5. Bg2 {[%clk 0:02:49.9]} 5...
e5 {[%clk 0:02:50.9]} 6. O-O {[%clk 0:02:49.3]} 6... d6 {[%clk 0:02:51.5]} 7. c3
{[%clk 0:02:48.9]} 7... Nge7 {[%clk 0:02:51.6]} 8. a3 {[%clk 0:02:45.9]} 8... h6
{[%clk 0:02:52]} 9. b4 {[%clk 0:02:41.9]} 9... O-O {[%clk 0:02:52.1]} 10. Nbd2
{[%clk 0:02:40.1]} 10... f5 {[%clk 0:02:51.4]} 11. Qb3+ {[%clk 0:02:36.8]} 11...
Kh7 {[%clk 0:02:50.2]} 12. Nh4 {[%clk 0:02:34.3]} 12... f4 {[%clk 0:02:49]} 13.
Nc4 {[%clk 0:02:32.8]} 13... g5 {[%clk 0:02:48]} 14. Nf3 {[%clk 0:02:31]} 14...
Ng6 {[%clk 0:02:46.4]} 15. Nfd2 {[%clk 0:02:28.7]} 15... g4 {[%clk 0:02:45.9]}
16. f3 {[%clk 0:02:27.3]} 16... h5 {[%clk 0:02:41.5]} 17. b5 {[%clk 0:02:16]}
17... Nce7 {[%clk 0:02:38.5]} 18. a4 {[%clk 0:02:14.4]} 18... Ng8 {[%clk
0:02:36.9]} 19. Rf2 {[%clk 0:02:06.4]} 19... Nh6 {[%clk 0:02:35.6]} 20. Nf1
{[%clk 0:02:05.8]} 20... h4 {[%clk 0:02:33.2]} 21. a5 {[%clk 0:01:53.8]} 21...
hxg3 {[%clk 0:02:10.5]} 22. hxg3 {[%clk 0:01:54.7]} 22... fxg3 {[%clk
0:02:09.9]} 23. Nxg3 {[%clk 0:01:52.8]} 23... Qh4 {[%clk 0:02:09.8]} 24. Nf1
{[%clk 0:01:47]} 24... g3 {[%clk 0:02:05.2]} 25. Re2 {[%clk 0:01:37.4]} 25...
Be6 {[%clk 0:02:04.9]} 26. Qd1 {[%clk 0:01:35.2]} 26... Nf4 {[%clk 0:02:04.2]}
27. Rc2 {[%clk 0:01:26.1]} 27... Nf7 {[%clk 0:01:51.4]} 28. Rd2 {[%clk
0:01:20.8]} 28... Bh6 {[%clk 0:01:46.2]} 29. Qe1 {[%clk 0:01:17.5]} 29... Rg8
{[%clk 0:01:42.9]} 30. Nce3 {[%clk 0:01:15.1]} 30... Ng5 {[%clk 0:01:42.1]} 31.
Nf5 {[%clk 0:01:04.9]} 31... Ngh3+ {[%clk 0:01:35.2]} 32. Bxh3 {[%clk
0:01:01.5]} 32... Nxh3+ {[%clk 0:01:34.8]} 33. Kg2 {[%clk 0:01:01]} 33... Bxf5
{[%clk 0:01:26.9]} 34. exf5 {[%clk 0:00:57.5]} 34... Bxd2 {[%clk 0:01:26.6]} 35.
Bxd2 {[%clk 0:00:56]} 35... Nf4+ {[%clk 0:01:27.2]} 36. Bxf4 {[%clk 0:00:55]}
36... exf4 {[%clk 0:01:18.9]} 37. Qe4 {[%clk 0:00:51.8]} 37... Rae8 {[%clk
0:01:18.1]} 38. Qxb7+ {[%clk 0:00:50.5]} 38... Rg7 {[%clk 0:01:18]} 39. Qd5
{[%clk 0:00:47.5]} 39... Re2+ {[%clk 0:01:17.4]} 40. Kg1 {[%clk 0:00:46]} 40...
g2 {[%clk 0:01:17.1]} 0-1

[Event "*** Titled Tuesday Blitz"]
[Site "Chess.com"]
[Date "2020.11.24"]
[Round "6"]
[White "HaryKane"]
[Black "SerGo055"]
[Result "0-1"]
[WhiteElo "2584"]
[BlackElo "2485"]
[TimeControl "180+1"]
[EndTime "11:21:05 PST"]
[Termination "SerGo055 won by resignation"]

1. e4 {[%clk 0:02:16.1]} 1... d5 {[%clk 0:02:55.9]} 2. exd5 {[%clk 0:02:15.5]}
2... Qxd5 {[%clk 0:02:54.9]} 3. Nf3 {[%clk 0:02:16.4]} 3... Nf6 {[%clk
0:02:54.1]} 4. Be2 {[%clk 0:02:17.3]} 4... e5 {[%clk 0:02:53.7]} 5. O-O {[%clk
0:02:17.2]} 5... e4 {[%clk 0:02:53.7]} 6. Nc3 {[%clk 0:02:17.4]} 6... Qa5 {[%clk
0:02:54]} 7. Nd4 {[%clk 0:02:08.9]} 7... Qe5 {[%clk 0:02:53.5]} 8. Ndb5 {[%clk
0:02:03.3]} 8... a6 {[%clk 0:02:28.8]} 9. d4 {[%clk 0:02:02.1]} 9... Qe7 {[%clk
0:02:24.8]} 10. Na3 {[%clk 0:01:56.4]} 10... b5 {[%clk 0:02:18.1]} 11. Bg5
{[%clk 0:01:19.6]} 11... Bb7 {[%clk 0:02:15.6]} 12. Re1 {[%clk 0:01:09.6]} 12...
h6 {[%clk 0:01:48.7]} 13. Bxf6 {[%clk 0:01:05.1]} 13... gxf6 {[%clk 0:01:44.6]}
14. Bxb5+ {[%clk 0:00:51.1]} 14... axb5 {[%clk 0:01:43.1]} 15. Naxb5 {[%clk
0:00:50.7]} 15... Na6 {[%clk 0:01:38.2]} 16. d5 {[%clk 0:00:48.1]} 16... f5
{[%clk 0:01:35.9]} 17. d6 {[%clk 0:00:38]} 17... cxd6 {[%clk 0:01:33.4]} 18. Nd5
{[%clk 0:00:38.5]} 18... Qe5 {[%clk 0:00:58.2]} 19. f4 {[%clk 0:00:34.7]} 19...
Qxd5 {[%clk 0:00:56.5]} 20. Nd4 {[%clk 0:00:30.8]} 20... Bg7 {[%clk 0:00:54.3]}
21. c3 {[%clk 0:00:31]} 21... Bxd4+ {[%clk 0:00:53.6]} 22. cxd4 {[%clk
0:00:31.1]} 22... Nb4 {[%clk 0:00:48.5]} 23. Qh5 {[%clk 0:00:25.8]} 23... Nc2
{[%clk 0:00:42.1]} 0-1

[Event "*** Titled Tuesday Blitz"]
[Site "Chess.com"]
[Date "2020.11.24"]
[Round "6"]
[White "PowerThinking2650"]
[Black "Meri-Arabidze"]
[Result "1-0"]
[WhiteElo "2369"]
[BlackElo "2580"]
[TimeControl "180+1"]
[EndTime "11:21:08 PST"]
[Termination "PowerThinking2650 won by checkmate"]

1. e4 {[%clk 0:03:00.9]} 1... c5 {[%clk 0:02:55.8]} 2. Nf3 {[%clk 0:03:00.8]}
2... e6 {[%clk 0:02:56.7]} 3. d4 {[%clk 0:03:01.1]} 3... cxd4 {[%clk 0:02:57.6]}
4. Nxd4 {[%clk 0:03:02]} 4... Nc6 {[%clk 0:02:58.2]} 5. Nc3 {[%clk 0:03:02.5]}
5... a6 {[%clk 0:02:58.6]} 6. Nxc6 {[%clk 0:02:56.4]} 6... bxc6 {[%clk
0:02:58.9]} 7. Bd3 {[%clk 0:02:52.8]} 7... d5 {[%clk 0:02:59]} 8. O-O {[%clk
0:02:50.8]} 8... Nf6 {[%clk 0:02:59.2]} 9. Qe2 {[%clk 0:02:32.7]} 9... Bb7
{[%clk 0:02:58.4]} 10. b3 {[%clk 0:02:31.2]} 10... Be7 {[%clk 0:02:58.6]} 11.
Bb2 {[%clk 0:02:30.7]} 11... O-O {[%clk 0:02:58.8]} 12. Na4 {[%clk 0:02:25.6]}
12... Qc7 {[%clk 0:02:54.7]} 13. e5 {[%clk 0:02:11.7]} 13... Nd7 {[%clk
0:02:53.9]} 14. c4 {[%clk 0:02:11.3]} 14... Rfe8 {[%clk 0:02:47.5]} 15. Rac1
{[%clk 0:02:09.1]} 15... Nf8 {[%clk 0:02:30.3]} 16. c5 {[%clk 0:02:02]} 16...
Nd7 {[%clk 0:02:10.6]} 17. f4 {[%clk 0:01:56.9]} 17... f5 {[%clk 0:02:06.3]} 18.
g4 {[%clk 0:01:46.6]} 18... g6 {[%clk 0:02:06.2]} 19. Kh1 {[%clk 0:01:37.5]}
19... Bf8 {[%clk 0:01:54.1]} 20. Rg1 {[%clk 0:01:32.1]} 20... Bg7 {[%clk
0:01:50.8]} 21. Bd4 {[%clk 0:01:27]} 21... a5 {[%clk 0:01:48.6]} 22. Rg3 {[%clk
0:01:22.4]} 22... Qc8 {[%clk 0:01:42.6]} 23. gxf5 {[%clk 0:01:13.4]} 23... exf5
{[%clk 0:01:43.5]} 24. Bxf5 {[%clk 0:01:12.3]} 24... Ba6 {[%clk 0:01:27.4]} 25.
Qg4 {[%clk 0:01:08.3]} 25... Nxe5 {[%clk 0:01:16]} 26. Bxe5 {[%clk 0:00:44]}
26... Qb7 {[%clk 0:01:12.9]} 27. Bxg6 {[%clk 0:00:40.4]} 27... hxg6 {[%clk
0:01:05.8]} 28. Qxg6 {[%clk 0:00:40.5]} 28... Re7 {[%clk 0:01:06.2]} 29. Rcg1
{[%clk 0:00:40.2]} 29... Ra7 {[%clk 0:01:00.4]} 30. Bxg7 {[%clk 0:00:34.9]}
30... Rxg7 {[%clk 0:00:58.4]} 31. Qe8+ {[%clk 0:00:34.7]} 31... Kh7 {[%clk
0:00:57.1]} 32. Rh3# {[%clk 0:00:34.8]} 1-0

[Event "*** Titled Tuesday Blitz"]
[Site "Chess.com"]
[Date "2020.11.24"]
[Round "6"]
[White "BJthechessgod"]
[Black "Ariadna_Atreides"]
[Result "1-0"]
[WhiteElo "2222"]
[BlackElo "2098"]
[TimeControl "180+1"]
[EndTime "11:21:09 PST"]
[Termination "BJthechessgod won by resignation"]

1. e4 {[%clk 0:03:00.2]} 1... c5 {[%clk 0:02:58.1]} 2. Nf3 {[%clk 0:02:53.6]}
2... d6 {[%clk 0:02:57.2]} 3. Bb5+ {[%clk 0:02:52.2]} 3... Bd7 {[%clk
0:02:56.6]} 4. Bxd7+ {[%clk 0:02:48.8]} 4... Qxd7 {[%clk 0:02:57.5]} 5. O-O
{[%clk 0:02:42.2]} 5... Nf6 {[%clk 0:02:57.7]} 6. e5 {[%clk 0:02:42.1]} 6...
dxe5 {[%clk 0:02:56.7]} 7. Nxe5 {[%clk 0:02:43]} 7... Qc8 {[%clk 0:02:56.8]} 8.
Nc3 {[%clk 0:02:23.4]} 8... e6 {[%clk 0:02:52.9]} 9. Qf3 {[%clk 0:02:22.6]} 9...
Bd6 {[%clk 0:02:47.7]} 10. Nc4 {[%clk 0:02:22.6]} 10... Bc7 {[%clk 0:02:43]} 11.
d3 {[%clk 0:02:19.1]} 11... O-O {[%clk 0:02:37.4]} 12. Bg5 {[%clk 0:02:18.2]}
12... Nbd7 {[%clk 0:02:35.8]} 13. Nb5 {[%clk 0:02:13.5]} 13... Ne5 {[%clk
0:02:32.8]} 14. Qe2 {[%clk 0:02:02.4]} 14... Nxc4 {[%clk 0:02:29.9]} 15. dxc4
{[%clk 0:02:03.3]} 15... Nd7 {[%clk 0:02:14.5]} 16. Rad1 {[%clk 0:01:59.7]}
16... a6 {[%clk 0:02:07.8]} 17. Nc3 {[%clk 0:01:50.4]} 17... Ne5 {[%clk
0:02:01.7]} 18. Ne4 {[%clk 0:01:47]} 18... f6 {[%clk 0:01:57.4]} 19. Bh4 {[%clk
0:01:43.6]} 19... b6 {[%clk 0:01:52.8]} 20. b3 {[%clk 0:01:43.7]} 20... Ng6
{[%clk 0:01:51.7]} 21. Bg3 {[%clk 0:01:43.3]} 21... Bxg3 {[%clk 0:01:50.7]} 22.
Nxg3 {[%clk 0:01:43.4]} 22... Nf4 {[%clk 0:01:46.2]} 23. Qf3 {[%clk 0:01:43.7]}
23... e5 {[%clk 0:01:46.1]} 24. Ne4 {[%clk 0:01:41]} 24... Rd8 {[%clk
0:01:42.8]} 25. Nc3 {[%clk 0:01:13.9]} 25... Ne6 {[%clk 0:01:31.8]} 26. Nd5
{[%clk 0:01:12.9]} 26... Nd4 {[%clk 0:01:05.7]} 27. Rxd4 {[%clk 0:01:08.6]}
27... Qb7 {[%clk 0:01:00]} 28. Rh4 {[%clk 0:01:04.1]} 28... Rab8 {[%clk
0:00:53.6]} 29. Qh5 {[%clk 0:00:59.6]} 29... h6 {[%clk 0:00:52.5]} 30. Qg6
{[%clk 0:00:55.1]} 30... Kh8 {[%clk 0:00:51.6]} 31. Nxf6 {[%clk 0:00:52.5]}
31... Rd6 {[%clk 0:00:37.8]} 32. Rxh6+ {[%clk 0:00:48.3]} 32... gxh6 {[%clk
0:00:35.3]} 33. Qxh6+ {[%clk 0:00:49.2]} 1-0

[Event "*** Titled Tuesday Blitz"]
[Site "Chess.com"]
[Date "2020.11.24"]
[Round "6"]
[White "Morshynska"]
[Black "Skat2704"]
[Result "0-1"]
[WhiteElo "2267"]
[BlackElo "2375"]
[TimeControl "180+1"]
[EndTime "11:21:15 PST"]
[Termination "Skat2704 won by resignation"]

1. Nf3 {[%clk 0:03:00.9]} 1... d5 {[%clk 0:02:59.6]} 2. g3 {[%clk 0:03:01.1]}
2... Nf6 {[%clk 0:02:58.9]} 3. Bg2 {[%clk 0:03:01]} 3... e6 {[%clk 0:02:59.4]}
4. O-O {[%clk 0:03:00.6]} 4... Be7 {[%clk 0:03:00.1]} 5. d4 {[%clk 0:03:01]}
5... O-O {[%clk 0:03:00.8]} 6. b3 {[%clk 0:03:01.4]} 6... b6 {[%clk 0:03:01.3]}
7. Bb2 {[%clk 0:03:01.1]} 7... Bb7 {[%clk 0:03:01.7]} 8. c4 {[%clk 0:03:01.7]}
8... c5 {[%clk 0:03:00.8]} 9. Ne5 {[%clk 0:02:55.3]} 9... Nbd7 {[%clk
0:02:56.8]} 10. e3 {[%clk 0:02:45.3]} 10... Qc7 {[%clk 0:02:54.1]} 11. Nxd7
{[%clk 0:02:40.2]} 11... Qxd7 {[%clk 0:02:53.3]} 12. dxc5 {[%clk 0:02:35.2]}
12... bxc5 {[%clk 0:02:51.7]} 13. cxd5 {[%clk 0:02:34.3]} 13... exd5 {[%clk
0:02:48.6]} 14. Nc3 {[%clk 0:02:11.3]} 14... Rfd8 {[%clk 0:02:45.4]} 15. Rc1
{[%clk 0:02:07]} 15... d4 {[%clk 0:02:35.5]} 16. exd4 {[%clk 0:02:07.9]} 16...
Bxg2 {[%clk 0:02:34.2]} 17. Kxg2 {[%clk 0:02:08.8]} 17... cxd4 {[%clk
0:02:34.2]} 18. Na4 {[%clk 0:02:05]} 18... Ne4 {[%clk 0:02:28.5]} 19. Qd3 {[%clk
0:01:48.8]} 19... Ng5 {[%clk 0:02:24.1]} 20. h4 {[%clk 0:01:21.1]} 20... Qd5+
{[%clk 0:02:12.6]} 21. f3 {[%clk 0:01:15.7]} 21... Ne6 {[%clk 0:02:11.7]} 22.
Qe4 {[%clk 0:00:46.6]} 22... Qa5 {[%clk 0:01:56.5]} 23. Rfd1 {[%clk 0:00:43.4]}
23... Bf6 {[%clk 0:01:51.1]} 24. Rd3 {[%clk 0:00:37.6]} 24... Re8 {[%clk
0:01:49.3]} 25. Qg4 {[%clk 0:00:18]} 25... h5 {[%clk 0:01:44]} 26. Qh3 {[%clk
0:00:14.8]} 26... Qb5 {[%clk 0:01:32.2]} 27. Rcd1 {[%clk 0:00:13.4]} 27... Nc7
{[%clk 0:01:25.9]} 28. R1d2 {[%clk 0:00:13.3]} 28... Nd5 {[%clk 0:01:23.7]} 29.
Qh1 {[%clk 0:00:13]} 29... Ne3+ {[%clk 0:01:22.5]} 30. Kf2 {[%clk 0:00:13.1]}
30... Qf5 {[%clk 0:01:19]} 31. Qh2 {[%clk 0:00:11.7]} 31... Ng4+ {[%clk
0:01:17.9]} 0-1

[Event "*** Titled Tuesday Blitz"]
[Site "Chess.com"]
[Date "2020.11.24"]
[Round "6"]
[White "swimmerchess"]
[Black "SlavenPastar"]
[Result "1-0"]
[WhiteElo "2786"]
[BlackElo "2497"]
[TimeControl "180+1"]
[EndTime "11:21:17 PST"]
[Termination "swimmerchess won by checkmate"]

1. e4 {[%clk 0:03:00.9]} 1... b6 {[%clk 0:03:00.9]} 2. d4 {[%clk 0:03:00.1]}
2... Bb7 {[%clk 0:02:59.8]} 3. Nc3 {[%clk 0:03:01]} 3... e6 {[%clk 0:02:59]} 4.
Bd3 {[%clk 0:03:00.5]} 4... Nf6 {[%clk 0:02:58.4]} 5. Nge2 {[%clk 0:03:00.2]}
5... d5 {[%clk 0:02:57]} 6. e5 {[%clk 0:02:59.2]} 6... Ng8 {[%clk 0:02:57.3]} 7.
Nb1 {[%clk 0:02:44.6]} 7... c5 {[%clk 0:02:55.8]} 8. c3 {[%clk 0:02:43.9]} 8...
Ne7 {[%clk 0:02:55.8]} 9. O-O {[%clk 0:02:43.3]} 9... h5 {[%clk 0:02:56.3]} 10.
Nd2 {[%clk 0:02:42.4]} 10... g6 {[%clk 0:02:56.8]} 11. Nf3 {[%clk 0:02:41.1]}
11... Nf5 {[%clk 0:02:52.1]} 12. b4 {[%clk 0:02:32.8]} 12... Be7 {[%clk
0:02:25.7]} 13. bxc5 {[%clk 0:02:27.8]} 13... bxc5 {[%clk 0:02:25.1]} 14. Rb1
{[%clk 0:02:27.5]} 14... Bc6 {[%clk 0:02:15.7]} 15. g3 {[%clk 0:02:12.1]} 15...
Kf8 {[%clk 0:02:08.9]} 16. h3 {[%clk 0:02:08.2]} 16... Kg7 {[%clk 0:02:08.8]}
17. Kg2 {[%clk 0:02:08.3]} 17... Qd7 {[%clk 0:02:00.9]} 18. Bd2 {[%clk
0:02:03.7]} 18... Ba4 {[%clk 0:01:58.6]} 19. Qc1 {[%clk 0:02:03.4]} 19... Nc6
{[%clk 0:01:29.6]} 20. Bg5 {[%clk 0:01:57.5]} 20... c4 {[%clk 0:01:10.1]} 21.
Bxf5 {[%clk 0:01:56.4]} 21... gxf5 {[%clk 0:01:05.2]} 22. h4 {[%clk 0:01:48.2]}
22... Rab8 {[%clk 0:00:55.5]} 23. Bf6+ {[%clk 0:01:47.9]} 23... Bxf6 {[%clk
0:00:47]} 24. exf6+ {[%clk 0:01:48.7]} 24... Kf8 {[%clk 0:00:39.4]} 25. Rxb8+
{[%clk 0:01:37.2]} 25... Nxb8 {[%clk 0:00:32.6]} 26. Qa3+ {[%clk 0:01:36.7]}
26... Kg8 {[%clk 0:00:25.2]} 27. Rb1 {[%clk 0:01:36.1]} 27... Na6 {[%clk
0:00:19]} 28. Ne5 {[%clk 0:01:36.1]} 28... Qe8 {[%clk 0:00:18.8]} 29. Nf4 {[%clk
0:01:31.8]} 29... Kh7 {[%clk 0:00:17]} 30. Rb7 {[%clk 0:01:30.5]} 30... Rf8
{[%clk 0:00:13.9]} 31. Nfg6 {[%clk 0:01:29.4]} 31... Rg8 {[%clk 0:00:10.2]} 32.
Rxf7+ {[%clk 0:01:27.1]} 32... Kh6 {[%clk 0:00:08]} 33. Qc1+ {[%clk 0:01:26.9]}
33... f4 {[%clk 0:00:04.9]} 34. Qxf4# {[%clk 0:01:27.4]} 1-0

[Event "*** Titled Tuesday Blitz"]
[Site "Chess.com"]
[Date "2020.11.24"]
[Round "6"]
[White "PlotnikovPavel"]
[Black "HackingKid98"]
[Result "1-0"]
[WhiteElo "2484"]
[BlackElo "2321"]
[TimeControl "180+1"]
[EndTime "11:21:18 PST"]
[Termination "PlotnikovPavel won on time"]

1. e4 {[%clk 0:03:00.9]} 1... c6 {[%clk 0:02:55.8]} 2. d4 {[%clk 0:03:00.1]}
2... d5 {[%clk 0:02:54.5]} 3. e5 {[%clk 0:03:00.2]} 3... Bf5 {[%clk 0:02:53.2]}
4. h4 {[%clk 0:02:59.3]} 4... a6 {[%clk 0:02:47.9]} 5. c3 {[%clk 0:02:40.1]}
5... Qc7 {[%clk 0:02:45.2]} 6. Bf4 {[%clk 0:02:38.1]} 6... Bd7 {[%clk
0:02:34.2]} 7. Qd2 {[%clk 0:02:32]} 7... e6 {[%clk 0:02:33.4]} 8. Bd3 {[%clk
0:02:31.4]} 8... c5 {[%clk 0:02:32.4]} 9. Nf3 {[%clk 0:02:30.6]} 9... Bb5 {[%clk
0:02:30.2]} 10. O-O {[%clk 0:02:28.6]} 10... Bxd3 {[%clk 0:02:28.1]} 11. Qxd3
{[%clk 0:02:29.5]} 11... Ne7 {[%clk 0:02:28.4]} 12. Nbd2 {[%clk 0:02:19.1]}
12... Nd7 {[%clk 0:02:27]} 13. c4 {[%clk 0:02:18.4]} 13... dxc4 {[%clk
0:02:21.2]} 14. Nxc4 {[%clk 0:02:17.8]} 14... Nd5 {[%clk 0:02:18.3]} 15. Bg3
{[%clk 0:02:16.5]} 15... b5 {[%clk 0:02:10.8]} 16. Nd6+ {[%clk 0:02:14.2]} 16...
Bxd6 {[%clk 0:02:08.8]} 17. exd6 {[%clk 0:02:15.1]} 17... Qb7 {[%clk 0:01:54.1]}
18. dxc5 {[%clk 0:02:13.3]} 18... Nxc5 {[%clk 0:01:50.6]} 19. Qd4 {[%clk
0:02:13.3]} 19... Na4 {[%clk 0:01:00.7]} 20. Qxg7 {[%clk 0:02:01.9]} 20... O-O-O
{[%clk 0:00:59]} 21. Rac1+ {[%clk 0:01:57.4]} 21... Kb8 {[%clk 0:00:54]} 22. Rc7
{[%clk 0:01:56.4]} 22... Nxc7 {[%clk 0:00:41.3]} 23. dxc7+ {[%clk 0:01:55.9]}
23... Ka8 {[%clk 0:00:42.2]} 24. cxd8=Q+ {[%clk 0:01:55.6]} 24... Rxd8 {[%clk
0:00:43.1]} 25. Ne5 {[%clk 0:01:51.1]} 25... Nxb2 {[%clk 0:00:28.3]} 26. Nxf7
{[%clk 0:01:50]} 26... Nc4 {[%clk 0:00:27.4]} 27. Qf6 {[%clk 0:01:47.6]} 27...
Rf8 {[%clk 0:00:22.2]} 28. Qxe6 {[%clk 0:01:44.7]} 28... Rxf7 {[%clk 0:00:19.9]}
29. Rd1 {[%clk 0:01:44.4]} 29... Re7 {[%clk 0:00:17.3]} 30. Rd8+ {[%clk
0:01:43.6]} 30... Ka7 {[%clk 0:00:16.7]} 31. Bb8+ {[%clk 0:01:43.7]} 31... Ka8
{[%clk 0:00:10.5]} 32. Bd6+ {[%clk 0:01:43.4]} 32... Ka7 {[%clk 0:00:08.2]} 33.
Bc5+ {[%clk 0:01:43.7]} 33... Nb6 {[%clk 0:00:06.4]} 34. Bxe7 {[%clk 0:01:43.7]}
34... Qc7 {[%clk 0:00:03.3]} 35. Qe3 {[%clk 0:01:36.3]} 1-0

[Event "*** Titled Tuesday Blitz"]
[Site "Chess.com"]
[Date "2020.11.24"]
[Round "6"]
[White "parintele_chess"]
[Black "mapleaff"]
[Result "0-1"]
[WhiteElo "2195"]
[BlackElo "2396"]
[TimeControl "180+1"]
[EndTime "11:21:19 PST"]
[Termination "mapleaff won by resignation"]

1. c4 {[%clk 0:02:50.4]} 1... b6 {[%clk 0:02:58]} 2. Nf3 {[%clk 0:02:39.6]} 2...
Bb7 {[%clk 0:02:58.2]} 3. g3 {[%clk 0:02:40]} 3... h5 {[%clk 0:02:57.2]} 4. h4
{[%clk 0:02:39.3]} 4... e6 {[%clk 0:02:56.2]} 5. Bg2 {[%clk 0:02:39.5]} 5... c5
{[%clk 0:02:55.8]} 6. O-O {[%clk 0:02:38.7]} 6... Nc6 {[%clk 0:02:56.1]} 7. b3
{[%clk 0:02:38]} 7... Nf6 {[%clk 0:02:55.6]} 8. Bb2 {[%clk 0:02:38.2]} 8... Qc7
{[%clk 0:02:55.5]} 9. d3 {[%clk 0:02:37.9]} 9... Be7 {[%clk 0:02:55]} 10. Nbd2
{[%clk 0:02:37]} 10... O-O-O {[%clk 0:02:54.4]} 11. a3 {[%clk 0:02:36.5]} 11...
Ng4 {[%clk 0:02:47.8]} 12. b4 {[%clk 0:02:28.7]} 12... Rhg8 {[%clk 0:02:43.8]}
13. bxc5 {[%clk 0:02:24]} 13... Bxc5 {[%clk 0:02:42.3]} 14. d4 {[%clk
0:02:24.4]} 14... Be7 {[%clk 0:02:42]} 15. d5 {[%clk 0:02:16.2]} 15... Na5
{[%clk 0:02:39.4]} 16. Qa4 {[%clk 0:02:01.9]} 16... Bc5 {[%clk 0:02:31.3]} 17.
Bd4 {[%clk 0:01:48.9]} 17... e5 {[%clk 0:02:23.8]} 18. Bxc5 {[%clk 0:01:42.9]}
18... Qxc5 {[%clk 0:02:24]} 19. Ne4 {[%clk 0:01:43.8]} 19... Qc7 {[%clk
0:02:12.4]} 20. c5 {[%clk 0:01:34.4]} 20... Bxd5 {[%clk 0:01:51.2]} 21. Nd6+
{[%clk 0:01:11.6]} 21... Kb8 {[%clk 0:01:47.9]} 22. cxb6 {[%clk 0:01:09.1]}
22... Qxd6 {[%clk 0:01:21.1]} 23. bxa7+ {[%clk 0:01:01.3]} 23... Ka8 {[%clk
0:01:21.4]} 24. Qxa5 {[%clk 0:01:01.4]} 24... e4 {[%clk 0:01:16.1]} 25. Rad1
{[%clk 0:00:53.5]} 25... Nf6 {[%clk 0:00:51.7]} 26. Ng5 {[%clk 0:00:46.5]} 26...
Qc6 {[%clk 0:00:44.3]} 27. Rxd5 {[%clk 0:00:41.3]} 27... Qxd5 {[%clk 0:00:44.4]}
28. Nxe4 {[%clk 0:00:41.4]} 28... Qxa5 {[%clk 0:00:43]} 0-1

[Event "*** Titled Tuesday Blitz"]
[Site "Chess.com"]
[Date "2020.11.24"]
[Round "6"]
[White "vladgoncharov"]
[Black "burbur555"]
[Result "1/2-1/2"]
[WhiteElo "2485"]
[BlackElo "2597"]
[TimeControl "180+1"]
[EndTime "11:21:25 PST"]
[Termination "Game drawn by agreement"]

1. d4 {[%clk 0:02:59.6]} 1... d5 {[%clk 0:02:59.7]} 2. c4 {[%clk 0:02:59.5]}
2... e6 {[%clk 0:02:59.9]} 3. Nc3 {[%clk 0:02:57.2]} 3... Nf6 {[%clk 0:02:58.2]}
4. Bg5 {[%clk 0:02:56]} 4... Be7 {[%clk 0:02:57.7]} 5. e3 {[%clk 0:02:55.9]}
5... c6 {[%clk 0:02:56.6]} 6. cxd5 {[%clk 0:02:52.1]} 6... exd5 {[%clk 0:02:56]}
7. Bd3 {[%clk 0:02:51.5]} 7... Bg4 {[%clk 0:02:55.8]} 8. Qc2 {[%clk 0:02:49.3]}
8... Bh5 {[%clk 0:02:55.5]} 9. Nge2 {[%clk 0:02:43.6]} 9... Bg6 {[%clk
0:02:55.1]} 10. Ng3 {[%clk 0:02:39.7]} 10... Bxd3 {[%clk 0:02:53.6]} 11. Qxd3
{[%clk 0:02:39.3]} 11... h6 {[%clk 0:02:53.7]} 12. Bxf6 {[%clk 0:02:32.5]} 12...
Bxf6 {[%clk 0:02:53.2]} 13. O-O {[%clk 0:02:31.5]} 13... O-O {[%clk 0:02:52.3]}
14. b4 {[%clk 0:02:31.3]} 14... a6 {[%clk 0:02:49.6]} 15. a4 {[%clk 0:02:30.9]}
15... Nd7 {[%clk 0:02:48.8]} 16. b5 {[%clk 0:02:30.8]} 16... axb5 {[%clk
0:02:48.3]} 17. axb5 {[%clk 0:02:30.6]} 17... Nb6 {[%clk 0:02:47.7]} 18. h3
{[%clk 0:02:16.3]} 18... Nc4 {[%clk 0:02:45.1]} 19. bxc6 {[%clk 0:01:59.6]}
19... bxc6 {[%clk 0:02:44.5]} 20. e4 {[%clk 0:01:59.6]} 20... Qb6 {[%clk
0:02:21.1]} 21. Rxa8 {[%clk 0:01:54.9]} 21... Rxa8 {[%clk 0:02:20.2]} 22. exd5
{[%clk 0:01:48.9]} 22... Qxd4 {[%clk 0:02:10.4]} 23. Qxd4 {[%clk 0:01:48.2]}
23... Bxd4 {[%clk 0:02:09.9]} 24. Nce2 {[%clk 0:01:17.2]} 24... Be5 {[%clk
0:02:04.6]} 25. dxc6 {[%clk 0:01:17]} 25... Rc8 {[%clk 0:02:03.9]} 26. Nf5
{[%clk 0:01:15.6]} 26... Kf8 {[%clk 0:01:59.5]} 27. Rc1 {[%clk 0:01:12.5]} 27...
Rxc6 {[%clk 0:01:57.8]} 28. f4 {[%clk 0:01:01.5]} 28... Bf6 {[%clk 0:01:52.6]}
29. Ned4 {[%clk 0:01:00.2]} 29... Rc8 {[%clk 0:01:47.6]} 30. Nb5 {[%clk
0:00:49.4]} 30... Nb6 {[%clk 0:01:16.3]} 31. Rxc8+ {[%clk 0:00:47.3]} 31... Nxc8
{[%clk 0:01:15.9]} 32. Kf2 {[%clk 0:00:47.8]} 32... h5 {[%clk 0:01:15.6]} 33.
Kf3 {[%clk 0:00:47.4]} 33... g6 {[%clk 0:01:15.2]} 34. Nfd6 {[%clk 0:00:44.7]}
34... Nxd6 {[%clk 0:01:15]} 35. Nxd6 {[%clk 0:00:45.6]} 35... Ke7 {[%clk
0:01:14.4]} 36. Ne4 {[%clk 0:00:43.8]} 36... Bd4 {[%clk 0:01:13.7]} 37. f5
{[%clk 0:00:43.7]} 37... Be5 {[%clk 0:01:05.2]} 38. g4 {[%clk 0:00:37.1]} 38...
hxg4+ {[%clk 0:01:02.4]} 39. hxg4 {[%clk 0:00:36.9]} 39... gxf5 {[%clk 0:01:02]}
40. gxf5 {[%clk 0:00:36.7]} 40... Kd7 {[%clk 0:01:01.9]} 41. Ng5 {[%clk
0:00:35.7]} 1/2-1/2